bitfinex/quotes_ETHUSD_20250420
["timestamp","ask_amount","ask_price","bid_price","bid_amount"]
[1745113258271,0.7839,1614.6,1614.1,6.13]
[1745113258570,6.19407712,1614.5,1614.3,5.259]
[1745113259746,6.97751043,1614.6,1614.3,5.259]
[1745113259952,13.17131813,1614.6,1614.3,5.259]
[1745113260375,6.19392313,1614.5,1614.3,5.259]
[1745113262171,6.19361043,1614.6,1614.3,5.259]
[1745113262380,6.19361043,1614.6,1614.3,11.45362695]
[1745113262673,12.38743314,1614.6,1614.3,5.259]
[1745113263173,6.19387641,1614.5,1614.3,5.259]
[1745113263370,12.3874559,1614.6,1614.3,5.259]
[1745113263575,6.19388768,1614.5,1614.3,5.259]
[1745113265580,0.7839,1614.7,1614.4,3.0]
[1745113265879,6.07,1614.8,1614.4,3.83013463]
[1745113266176,6.07,1614.8,1614.4,3.7682]
[1745113266177,6.19321146,1614.7,1614.4,3.7682]
[1745113266555,12.26287972,1614.8,1614.4,16.15639197]
[1745113266756,12.26287972,1614.8,1614.4,9.96224464]
[1745113266957,12.26287972,1614.8,1614.4,9.96222386]
[1745113267358,6.07,1614.8,1614.5,6.19374124]
[1745113267559,6.07,1614.8,1614.5,6.19363852]
[1745113267992,6.07,1614.8,1614.6,6.19333662]
[1745113268198,6.07,1614.8,1614.7,5.26]
[1745113268344,6.07,1614.8,1614.7,11.45310088]
[1745113268548,7.00273792,1615.1,1614.7,20.6459607]
[1745113268848,7.00261622,1615.1,1614.8,6.19243859]
[1745113269181,0.811,1615.1,1614.8,6.19243859]
[1745113269880,12.26142066,1615.2,1614.8,6.97473859]
[1745113270078,12.26142066,1615.2,1614.9,6.19230229]
[1745113271782,6.19142066,1615.2,1614.8,6.97473859]
[1745113272860,12.38296194,1615.2,1614.8,6.97473859]
[1745113273882,12.3829069,1615.2,1614.8,6.97473859]
[1745113274251,6.19142066,1615.2,1614.8,6.97473859]
[1745113274683,12.3828801,1615.2,1614.8,6.97473859]
[1745113274883,6.19142066,1615.2,1614.8,6.97473859]
[1745113275903,6.19142066,1615.2,1614.8,13.16719354]
[1745113276405,6.881,1615.3,1615.0,6.19194915]
[1745113276562,6.07,1615.3,1615.1,12.22183562]
[1745113276761,13.06651039,1615.5,1615.1,18.41318629]
[1745113276997,6.8763,1615.5,1615.1,6.0305]
[1745113277300,6.99748375,1615.2,1615.1,5.24]
[1745113277470,0.8063,1615.2,1615.1,5.24]
[1745113277660,6.19098968,1615.3,1615.1,5.24]
[1745113279055,6.9733568,1615.4,1615.1,11.43156197]
[1745113279484,13.04307683,1615.5,1615.1,12.25876197]
[1745113279700,19.23339542,1615.5,1615.1,12.25876197]
[1745113279903,13.04307683,1615.5,1615.2,6.19099117]
[1745113280062,12.26027683,1615.5,1615.2,6.19099117]
[1745113280290,6.39838416,1615.6,1615.2,6.19095379]
[1745113280593,6.39838416,1615.6,1615.3,6.19072753]
[1745113280792,6.39838416,1615.6,1615.2,6.19095379]
[1745113281010,6.39838416,1615.6,1615.2,6.19094699]
[1745113281325,6.19007816,1615.5,1615.2,6.19094699]
[1745113281486,12.58838921,1615.6,1615.2,6.19094699]
[1745113283220,12.58833006,1615.6,1615.2,6.19094699]
[1745113283399,6.39838416,1615.6,1615.2,6.19094699]
[1745113283989,6.1907084,1615.4,1615.2,3.0]
[1745113284626,12.38139722,1615.4,1615.2,3.0]
[1745113284796,7.51060854,1615.4,1615.2,3.0]
[1745113285000,7.00807555,1615.5,1615.2,3.0]
[1745113285534,6.39836355,1615.6,1615.2,10.01773555]
[1745113285701,6.39836355,1615.6,1615.2,16.20866555]
[1745113285887,6.39836355,1615.6,1615.3,6.19065476]
[1745113286094,0.2085052,1615.6,1615.3,6.19056646]
[1745113286301,0.2085052,1615.6,1615.4,6.19041697]
[1745113286490,0.2085052,1615.6,1615.5,5.239]
[1745113287227,6.3981561,1615.6,1615.5,5.239]
[1745113287918,0.2085052,1615.6,1615.5,5.239]
[1745113288313,6.3981561,1615.6,1615.5,5.239]
[1745113290134,7.73870102,1615.6,1615.5,5.239]
[1745113290294,12.16230763,1615.6,1615.5,5.239]
[1745113290490,6.19072062,1615.4,1615.2,8.238]
[1745113290716,6.39829935,1615.6,1615.3,0.7732]
[1745113291424,6.39829935,1615.6,1615.3,6.96398876]
[1745113291728,6.39829935,1615.6,1615.3,0.7732]
[1745113292323,12.5882345,1615.6,1615.3,0.7732]
[1745113292497,6.19070183,1615.4,1615.2,8.238]
[1745113292697,6.19080047,1615.3,1615.2,8.238]
[1745113293229,6.95780047,1615.3,1615.2,5.238]
[1745113293411,6.19060166,1615.4,1615.2,5.238]
[1745113293801,6.19080047,1615.3,1615.2,5.238]
[1745113294828,6.95780047,1615.3,1615.2,5.238]
[1745113298232,13.02780047,1615.3,1615.2,5.238]
[1745113300235,6.19233389,1614.9,1614.8,56.057]
[1745113300410,6.19233389,1614.9,1614.8,58.296]
[1745113300603,6.19233389,1614.9,1614.8,53.057]
[1745113301741,6.94411171,1615.0,1614.8,53.057]
[1745113302229,13.13636372,1615.0,1614.8,53.057]
[1745113302435,6.94411171,1615.0,1614.8,53.057]
[1745113302735,6.19233389,1614.9,1614.8,53.057]
[1745113303142,6.19233389,1614.9,1614.7,5.239]
[1745113303143,6.19271736,1614.8,1614.7,5.239]
[1745113304807,6.07,1614.9,1614.7,5.239]
[1745113305041,6.07,1614.9,1614.7,11.43207386]
[1745113305437,6.07,1614.9,1614.7,5.239]
[1745113305638,12.2624666,1614.9,1614.7,5.239]
[1745113306843,6.07,1614.9,1614.7,5.239]
[1745113307014,6.94405796,1615.0,1614.7,5.239]
[1745113307206,6.19237931,1614.9,1614.7,5.239]
[1745113308638,6.94405796,1615.0,1614.7,5.239]
[1745113308939,12.26179069,1615.1,1614.8,6.19262432]
[1745113309245,6.97832885,1615.2,1614.9,0.7974]
[1745113309246,6.07,1615.2,1614.9,0.7974]
[1745113309447,6.07,1615.2,1615.1,6.19156708]
[1745113309617,6.07,1615.2,1615.1,5.259]
[1745113310142,6.8569,1615.2,1615.1,5.259]
[1745113310346,6.07,1615.2,1615.1,5.259]
[1745113310843,6.07,1615.2,1615.1,5.99626054]
[1745113311015,6.07,1615.2,1615.1,5.259]
[1745113311441,6.07,1615.2,1615.1,11.45056708]
[1745113311661,6.19025004,1615.5,1615.1,11.45031579]
[1745113312034,12.38062882,1615.5,1615.1,11.45031579]
[1745113312228,7.18524442,1615.6,1615.2,6.99583775]
[1745113312623,13.37523112,1615.6,1615.2,6.99583775]
[1745113314256,6.19004486,1615.5,1615.2,6.99583775]
[1745113314475,6.19074607,1615.4,1615.2,3.0]
[1745113316537,12.38058693,1615.5,1615.2,3.0]
[1745113316852,6.19020434,1615.5,1615.2,3.0]
[1745113317038,0.9954052,1615.6,1615.3,0.8048]
[1745113317246,6.19041723,1615.4,1615.2,3.0]
[1745113317853,6.19032895,1615.5,1615.2,3.0]
[1745113318047,0.2085052,1615.6,1615.3,0.7808]
[1745113318245,0.2085052,1615.6,1615.4,6.19040297]
[1745113318445,0.2085052,1615.6,1615.5,5.258]
[1745113319778,0.2085052,1615.6,1615.5,6.0388]
[1745113320865,0.2085052,1615.6,1615.5,5.258]
[1745113321060,6.3981561,1615.6,1615.5,5.258]
[1745113321779,7.65690064,1615.6,1615.5,5.258]
[1745113321952,8.43170064,1615.6,1615.5,5.258]
[1745113323143,1.46724974,1615.6,1615.5,5.258]
[1745113323351,0.2085052,1615.6,1615.5,5.258]
[1745113324380,6.3981561,1615.6,1615.5,5.258]
[1745113328201,7.1523561,1615.6,1615.5,5.258]
[1745113328486,6.19080047,1615.3,1615.2,5.258]
[1745113329270,6.94480093,1615.4,1615.2,5.258]
[1745113329586,6.19024778,1615.5,1615.2,6.0534]
[1745113329756,12.38064992,1615.5,1615.2,6.0534]
[1745113329952,6.94467342,1615.4,1615.3,5.258]
[1745113332888,6.1912853,1615.2,1615.0,8.258]
[1745113333793,12.38280206,1615.2,1615.0,5.258]
[1745113334088,6.1912853,1615.2,1615.0,5.258]
[1745113334289,12.38277197,1615.2,1615.0,5.258]
[1745113334483,6.1912853,1615.2,1615.0,5.258]
[1745113336089,12.38273454,1615.2,1615.0,5.258]
[1745113336277,7.42984053,1615.1,1615.0,5.258]
[1745113336797,6.19228332,1615.0,1614.8,3.0]
[1745113337092,6.19233389,1614.9,1614.8,3.0]
[1745113338096,6.19233389,1614.9,1614.7,58.309]
[1745113338097,6.19271736,1614.8,1614.7,61.309]
[1745113339895,13.50122249,1614.8,1614.7,5.258]
[1745113340062,6.19335678,1614.7,1614.4,9.0901]
[1745113340458,12.38679739,1614.7,1614.4,9.0901]
[1745113340671,6.19335678,1614.7,1614.4,6.0901]
[1745113341890,14.32792334,1614.8,1614.4,18.47814637]
[1745113342074,14.32792334,1614.8,1614.4,12.28408997]
[1745113342592,14.32792334,1614.8,1614.4,18.47807732]
[1745113342898,6.07,1614.8,1614.6,0.7561]
[1745113344603,12.26274819,1614.8,1614.6,0.7561]
[1745113345194,6.19274819,1614.8,1614.6,0.7561]
[1745113345504,6.19331254,1614.7,1614.5,3.0]
[1745113346403,6.19304406,1614.8,1614.5,3.0]
[1745113347101,12.26257428,1614.9,1614.5,9.9928271]
[1745113347275,18.4552412,1614.9,1614.5,9.19363089]
[1745113347475,6.19274643,1614.8,1614.5,9.19363089]
[1745113349506,12.26257428,1614.9,1614.5,9.19363089]
[1745113349701,12.26257428,1614.9,1614.6,0.7501]
[1745113350418,6.19272682,1614.8,1614.6,0.7501]
[1745113353487,6.19310088,1614.7,1614.5,3.0]
[1745113354611,6.19310088,1614.7,1614.6,5.279]
[1745113354776,6.99970088,1614.7,1614.6,5.279]
[1745113355815,8.31894365,1614.7,1614.6,5.279]
[1745113356023,6.19363596,1614.6,1614.3,8.28]
[1745113356226,5.77374938,1614.7,1614.3,5.28]
[1745113356227,7.00085173,1614.4,1614.3,5.28]
[1745113357519,6.99877938,1614.6,1614.3,5.28]
[1745113357720,6.19391729,1614.5,1614.3,5.28]
[1745113357891,6.19425173,1614.4,1614.3,5.28]
[1745113359823,6.99876298,1614.6,1614.3,5.28]
[1745113360025,6.19366298,1614.6,1614.3,6.0349]
[1745113360407,6.19366298,1614.6,1614.3,12.22953413]
[1745113361726,6.07,1614.7,1614.4,6.19422032]
[1745113362708,12.2631471,1614.7,1614.4,6.19422032]
[1745113365833,6.1931471,1614.7,1614.4,6.19422032]
[1745113368038,0.8051,1614.8,1614.4,3.0]
[1745113368333,6.19366716,1614.6,1614.4,3.0]
[1745113368509,12.38669888,1614.7,1614.4,3.8004]
[1745113368831,6.19386807,1614.5,1614.4,3.0]
[1745113369001,6.19352835,1614.6,1614.4,3.0]
[1745113369638,6.19386807,1614.5,1614.4,3.0]
[1745113369937,6.96992835,1614.6,1614.4,3.0]
[1745113371711,13.16368997,1614.6,1614.4,3.0]
[1745113372742,6.96992835,1614.6,1614.4,3.0]
[1745113373214,6.19386807,1614.5,1614.4,3.0]
[1745113373843,6.19386807,1614.5,1614.3,5.28]
[1745113375118,6.96992835,1614.6,1614.3,5.28]
[1745113375558,13.163729,1614.6,1614.3,5.28]
[1745113377343,6.96992835,1614.6,1614.3,5.28]
[1745113377548,12.26331019,1614.7,1614.4,0.8262]
[1745113378056,6.19353889,1614.6,1614.4,0.8262]
[1745113378219,18.45673902,1614.7,1614.4,0.8262]
[1745113378419,6.19349328,1614.6,1614.4,0.8262]
[1745113378945,6.19386807,1614.5,1614.3,5.28]
[1745113379318,12.38725689,1614.6,1614.3,5.28]
[1745113380256,6.19349328,1614.6,1614.3,5.28]
[1745113380425,12.38724407,1614.6,1614.3,5.28]
[1745113381156,6.19425173,1614.4,1614.3,5.28]
[1745113381457,8.03944976,1614.6,1614.3,11.47462665]
[1745113381769,6.19372535,1614.6,1614.3,11.47462665]
[1745113382350,13.02679375,1614.7,1614.3,11.47462665]
[1745113382351,6.19391732,1614.5,1614.3,5.28]
[1745113382650,6.19425173,1614.4,1614.3,5.28]
[1745113382855,6.19391732,1614.5,1614.3,5.28]
[1745113383019,12.38741651,1614.6,1614.3,5.28]
[1745113383223,6.19365353,1614.6,1614.3,6.0533]
[1745113383626,12.26332271,1614.7,1614.4,6.96743472]
[1745113388232,6.193585,1614.6,1614.4,3.7733]
[1745113388423,12.26332271,1614.7,1614.4,3.7733]
[1745113388623,12.26332271,1614.7,1614.4,9.96746812]
[1745113389354,6.19332271,1614.7,1614.4,9.96746812]
[1745113391763,6.19332271,1614.7,1614.4,15.23846812]
[1745113397754,12.26290082,1614.8,1614.4,15.23833999]
[1745113397960,13.5704509,1614.8,1614.4,15.23832538]
[1745113398558,6.19320237,1614.7,1614.4,15.23832538]
[1745113398928,6.07,1614.8,1614.4,9.0443]
[1745113399134,3.64790661,1615.0,1614.5,3.8291]
[1745113399135,6.8543,1615.0,1614.5,3.8291]
[1745113399470,6.19271736,1614.8,1614.5,10.02296535]
[1745113400255,6.19271736,1614.8,1614.5,3.0]
[1745113400256,12.38570323,1614.8,1614.5,3.0]
[1745113400458,6.1933219,1614.7,1614.5,3.0]
[1745113400846,6.19271736,1614.8,1614.5,3.8291]
[1745113401159,6.19271736,1614.8,1614.5,10.02282598]
[1745113401959,7.66228296,1614.9,1614.5,10.02273543]
[1745113402159,13.04648013,1615.0,1614.6,6.19323185]
[1745113402659,6.19235841,1614.9,1614.6,6.19323185]
[1745113403368,6.19235841,1614.9,1614.6,6.6552171]
[1745113404365,13.04648013,1615.0,1614.6,12.84849423]
[1745113404735,6.07,1615.0,1614.8,6.19249179]
[1745113404940,6.95856125,1615.2,1614.9,6.19231097]
[1745113405535,6.95856125,1615.2,1614.9,6.94621097]
[1745113406766,6.95856125,1615.2,1614.9,0.7539]
[1745113407171,6.19221709,1615.0,1614.8,5.24]
[1745113407371,12.38451557,1615.0,1614.8,5.24]
[1745113407560,14.42266713,1615.0,1614.8,5.24]
[1745113407739,14.42266713,1615.0,1614.6,7.45036644]
[1745113408067,6.99191709,1615.0,1614.6,13.64362652]
[1745113408477,13.18420123,1615.0,1614.6,7.45034092]
[1745113408772,6.99191709,1615.0,1614.6,7.45034092]
[1745113408935,6.99191709,1615.0,1614.6,13.64358942]
[1745113409773,6.99191709,1615.0,1614.6,13.64358465]
[1745113412372,6.99191709,1615.0,1614.8,3.0]
[1745113413677,12.26179807,1615.1,1614.8,9.19251597]
[1745113414243,12.26179807,1615.1,1614.8,3.0]
[1745113414466,12.26179807,1615.1,1614.8,9.19271634]
[1745113415577,6.19179807,1615.1,1614.8,9.19271634]
[1745113417080,6.19179807,1615.1,1614.8,3.0]
[1745113417283,6.19198654,1615.0,1614.8,3.0]
[1745113418878,12.38423697,1615.0,1614.8,3.0]
[1745113419202,0.8172,1614.9,1614.8,3.0]
[1745113419378,7.00953389,1614.9,1614.8,3.0]
[1745113419551,0.8172,1614.9,1614.8,3.0]
[1745113421867,0.8058226,1614.9,1614.8,3.0]
[1745113422048,6.19293446,1614.8,1614.6,0.45368084]
[1745113422259,6.19293446,1614.8,1614.5,11.43383498]
[1745113422464,6.19293446,1614.8,1614.6,3.0]
[1745113422776,6.99837869,1614.9,1614.6,3.0]
[1745113422979,6.99837869,1614.9,1614.6,3.8031]
[1745113424384,13.19106118,1614.9,1614.6,3.8031]
[1745113424690,6.99837869,1614.9,1614.6,3.8031]
[1745113424874,6.99837869,1614.9,1614.6,4.26035993]
[1745113425187,13.19101384,1614.9,1614.6,4.26035993]
[1745113425787,6.19277944,1614.8,1614.6,4.26035993]
[1745113425993,6.19277944,1614.8,1614.6,3.45725993]
[1745113426581,6.19310088,1614.7,1614.6,3.45725993]
[1745113426976,6.19310088,1614.7,1614.6,3.0]
[1745113427552,6.97620088,1614.7,1614.6,3.0]
[1745113428889,6.07,1614.8,1614.6,3.45453841]
[1745113429971,12.26275384,1614.8,1614.6,3.45453841]
[1745113430698,18.45575616,1614.8,1614.6,3.45453841]
[1745113431000,12.26275384,1614.8,1614.6,3.45453841]
[1745113432700,6.19310088,1614.7,1614.6,3.0]
[1745113432906,7.02010088,1614.7,1614.6,3.0]
[1745113434228,0.827,1614.7,1614.6,3.0]
[1745113434407,19.28274241,1614.8,1614.6,3.0]
[1745113434608,21.57580731,1614.8,1614.6,3.0]
[1745113435202,13.08975384,1614.8,1614.6,3.0]
[1745113435396,12.26275384,1614.8,1614.6,3.0]
[1745113435786,18.45584435,1614.8,1614.6,3.0]
[1745113435988,12.26275384,1614.8,1614.6,3.0]
[1745113436702,18.45581098,1614.8,1614.6,3.0]
[1745113436896,6.19310088,1614.7,1614.6,3.0]
[1745113437606,6.19310088,1614.7,1614.5,5.24]
[1745113437810,6.19348445,1614.6,1614.5,5.24]
[1745113439111,6.96360088,1614.7,1614.5,5.24]
[1745113439490,13.15698595,1614.7,1614.5,5.24]
[1745113440380,6.96360088,1614.7,1614.5,5.24]
[1745113440578,13.15697831,1614.7,1614.5,5.24]
[1745113440988,15.27250425,1614.7,1614.5,5.24]
[1745113441187,6.19348445,1614.6,1614.5,5.24]
[1745113441389,6.96360088,1614.7,1614.5,5.24]
[1745113441689,12.26295517,1614.8,1614.5,6.047]
[1745113442208,6.19295517,1614.8,1614.5,6.047]
[1745113443679,12.38600159,1614.8,1614.5,6.047]
[1745113443875,6.19295517,1614.8,1614.5,6.047]
[1745113444413,12.38593806,1614.8,1614.5,6.047]
[1745113444711,6.19295517,1614.8,1614.5,6.047]
[1745113444907,6.19295517,1614.8,1614.5,12.24069281]
[1745113445311,6.96303251,1614.9,1614.6,3.0]
[1745113445612,13.1556303,1614.9,1614.6,3.0]
[1745113445911,12.26218874,1615.0,1614.6,9.2554151]
[1745113446136,6.19243622,1614.9,1614.7,0.8289]
[1745113447011,12.38442021,1615.0,1614.7,0.8289]
[1745113447213,6.19233525,1614.9,1614.7,0.8289]
[1745113447506,6.19288643,1614.8,1614.6,3.0]
[1745113448817,6.19288643,1614.8,1614.6,3.0]
[1745113452221,6.19310088,1614.7,1614.6,3.0]
[1745113452712,6.96370088,1614.7,1614.6,3.0]
[1745113452912,6.19354958,1614.6,1614.4,8.216]
[1745113454120,13.15710525,1614.7,1614.4,8.216]
[1745113454736,6.96370088,1614.7,1614.4,8.216]
[1745113454888,16.8044272,1614.8,1614.4,14.4099724]
[1745113455088,6.19312079,1614.7,1614.4,14.4099724]
[1745113455507,12.38652639,1614.7,1614.4,8.216]
[1745113455807,6.19312079,1614.7,1614.4,8.216]
[1745113458438,0.7706,1614.8,1614.5,6.19352766]
[1745113458729,6.19274353,1614.8,1614.6,3.0]
[1745113459522,12.38516305,1614.9,1614.6,3.0]
[1745113459823,6.19271846,1614.8,1614.6,3.0]
[1745113461126,6.19310088,1614.7,1614.6,3.0]
[1745113461299,7.01800088,1614.7,1614.4,8.216]
[1745113461495,10.66572841,1614.8,1614.4,14.41008458]
[1745113461924,6.19323372,1614.7,1614.4,14.41008458]
[1745113463631,6.19323372,1614.7,1614.4,8.216]
[1745113463950,6.19386807,1614.5,1614.4,5.216]
[1745113464106,6.19386807,1614.5,1614.1,6.40969867]
[1745113464107,6.19464345,1614.3,1614.1,6.40969867]
[1745113464419,6.19464345,1614.3,1614.1,5.196]
[1745113464623,9.842384,1614.4,1614.1,5.196]
[1745113464825,7.01133754,1614.5,1614.1,5.9753]
[1745113465030,6.1944159,1614.4,1614.1,12.17055064]
[1745113465241,6.19490136,1614.3,1614.1,5.196]
[1745113467434,6.1950192,1614.2,1614.1,5.196]
[1745113469045,0.8121,1614.3,1614.1,5.196]
[1745113469358,6.19478562,1614.3,1614.1,5.196]
[1745113470466,13.20035539,1614.5,1614.2,0.8273]
[1745113471424,6.19435322,1614.4,1614.2,0.8273]
[1745113471956,6.19435322,1614.4,1614.1,6.0233]
[1745113472134,6.19425173,1614.4,1614.1,6.0233]
[1745113475522,12.38883272,1614.4,1614.1,6.0233]
[1745113475722,6.19425173,1614.4,1614.1,12.21864631]
[1745113475923,6.19425173,1614.4,1614.1,6.0233]
[1745113476953,13.2003292,1614.5,1614.1,6.0233]
[1745113477147,7.0061897,1614.5,1614.1,12.21840045]
[1745113477659,13.20040833,1614.5,1614.1,12.21840045]
[1745113477832,6.19431055,1614.4,1614.1,12.21840045]
[1745113478259,7.0061897,1614.5,1614.1,12.21840045]
[1745113479284,13.2003709,1614.5,1614.1,12.21840045]
[1745113479630,6.19428518,1614.4,1614.1,12.21840045]
[1745113480044,6.19426682,1614.4,1614.1,12.28034914]
[1745113480252,6.19426682,1614.4,1614.1,12.21840045]
[1745113480838,6.19426682,1614.4,1614.1,6.0233]
[1745113481544,6.19467375,1614.3,1614.1,6.0233]
[1745113482280,6.1950192,1614.2,1614.1,6.0233]
[1745113482442,7.0226192,1614.2,1614.1,5.196]
[1745113487972,0.8276,1614.2,1614.1,5.196]
[1745113489463,7.00757375,1614.3,1614.1,5.196]
[1745113489662,8.69256798,1614.3,1614.1,5.196]
[1745113490444,7.00757375,1614.3,1614.1,5.196]
[1745113492076,6.1950192,1614.2,1614.1,5.196]
[1745113492371,6.19446112,1614.4,1614.1,12.15959676]
[1745113492578,6.19400284,1614.5,1614.1,12.15959676]
[1745113492745,6.19400284,1614.5,1614.1,12.15956348]
[1745113493278,6.19400284,1614.5,1614.1,18.35472364]
[1745113493475,12.38816196,1614.5,1614.1,12.15956016]
[1745113493773,6.19400284,1614.5,1614.1,12.15956016]
[1745113493978,6.19400284,1614.5,1614.2,7.01396373]
[1745113494150,6.1936763,1614.6,1614.2,7.01387046]
[1745113494349,6.1936763,1614.6,1614.3,6.19452381]
[1745113495977,6.1936763,1614.6,1614.3,3.0]
[1745113496182,6.19389696,1614.5,1614.3,3.0]
[1745113496680,6.19425173,1614.4,1614.3,3.0]
[1745113496975,6.96669696,1614.5,1614.3,3.0]
[1745113498680,6.97400732,1614.6,1614.3,3.0]
[1745113498847,6.19370732,1614.6,1614.3,3.0]
[1745113499176,6.19370732,1614.6,1614.3,9.19452884]
[1745113500180,6.19396975,1614.5,1614.3,3.0]
[1745113500963,6.19425173,1614.4,1614.3,3.0]
[1745113501257,6.19396975,1614.5,1614.3,3.0]
[1745113501456,6.19289632,1614.8,1614.4,7.01253759]
[1745113501667,10.62074256,1614.9,1614.5,6.19375259]
[1745113501868,6.19196527,1615.0,1614.6,7.01163786]
[1745113502174,6.19196527,1615.0,1614.7,9.19308053]
[1745113502377,0.00571233,1615.2,1614.8,7.01402353]
[1745113502578,0.00571233,1615.2,1615.0,0.8215]
[1745113502875,10.64067355,1615.2,1614.9,5.177]
[1745113503045,9.84497355,1615.2,1614.9,5.177]
[1745113504148,9.83926122,1615.2,1614.9,5.177]
[1745113507349,6.19195046,1615.0,1614.9,5.177]
[1745113507755,6.19170304,1615.1,1614.9,5.177]
[1745113508471,6.19195046,1615.0,1614.9,5.177]
[1745113508660,6.97615046,1615.0,1614.9,5.177]
[1745113508867,6.97615046,1615.0,1614.7,3.0]
[1745113509069,13.16843324,1615.0,1614.7,3.0]
[1745113509251,6.97615046,1615.0,1614.7,3.46959941]
[1745113509667,13.16846089,1615.0,1614.7,3.46959941]
[1745113510077,6.19237785,1614.9,1614.7,3.0]
[1745113511891,6.19217981,1615.0,1614.7,3.0]
[1745113513253,12.38440306,1615.0,1614.7,3.0]
[1745113513458,6.19217981,1615.0,1614.7,3.73726054]
[1745113513659,12.38441586,1615.0,1614.7,3.4687181]
[1745113513883,6.19239131,1614.9,1614.7,3.4687181]
[1745113514488,6.19210296,1615.0,1614.7,3.4687181]
[1745113515559,6.19210296,1615.0,1614.7,9.66181456]
[1745113516188,6.97561042,1615.2,1614.9,3.0]
[1745113516490,12.38288358,1615.2,1614.9,3.0]
[1745113517386,6.19141042,1615.2,1614.9,3.0]
[1745113517593,12.38216621,1615.3,1615.0,0.8077]
[1745113518290,12.38208864,1615.3,1615.0,0.8077]
[1745113518791,6.19099679,1615.3,1615.0,0.8077]
[1745113519175,12.38212203,1615.3,1615.0,0.8077]
[1745113519484,6.19099679,1615.3,1615.0,0.8077]
[1745113519670,6.19120674,1615.2,1615.0,0.8077]
[1745113520189,6.19099679,1615.3,1615.0,0.8077]
[1745113520361,9.8384696,1615.4,1615.0,6.99938903]
[1745113521002,6.19056299,1615.4,1615.0,6.99938833]
[1745113521205,6.19056299,1615.4,1615.1,3.0]
[1745113522063,6.19056299,1615.4,1615.1,9.19146095]
[1745113522264,4.64132414,1615.6,1615.1,3.0]
[1745113522492,6.19098114,1615.3,1615.1,3.0]
[1745113522689,6.17886626,1615.3,1615.1,3.0]
[1745113522876,6.97526626,1615.3,1615.0,0.8077]
[1745113523082,16.02932064,1615.4,1615.1,3.0]
[1745113526292,9.83855196,1615.4,1615.1,3.0]
[1745113526598,16.02924098,1615.4,1615.1,3.0]
[1745113527606,9.83855196,1615.4,1615.1,3.0]
[1745113527768,6.98666338,1615.5,1615.1,9.19133172]
[1745113527968,6.19052255,1615.4,1615.1,9.19133172]
[1745113528503,6.98666338,1615.5,1615.2,6.19117717]
[1745113530001,3.64790661,1615.4,1615.1,9.19133172]
[1745113530191,9.83846689,1615.4,1615.1,9.19133172]
[1745113530703,9.83846689,1615.4,1615.1,3.0]
[1745113530704,6.19094108,1615.3,1615.1,3.0]
[1745113531202,1.6029408,1615.3,1615.1,3.0]
[1745113531568,9.83846689,1615.4,1615.1,3.0]
[1745113531569,3.64790661,1615.4,1615.1,9.19136959]
[1745113531900,3.64790661,1615.4,1615.1,15.38270072]
[1745113532400,3.64790661,1615.4,1615.1,9.19133113]
[1745113533501,3.64790661,1615.4,1615.1,14.38733113]
[1745113533803,6.19090309,1615.3,1615.1,8.196]
[1745113534100,8.61652898,1615.3,1615.1,5.196]
[1745113534278,9.83909036,1615.2,1615.1,5.196]
[1745113535473,8.61652898,1615.3,1615.1,5.196]
[1745113535675,6.19118375,1615.2,1615.1,5.196]
[1745113536405,14.80767977,1615.3,1615.1,5.196]
[1745113536707,8.61652898,1615.3,1615.1,5.196]
[1745113536907,14.80768127,1615.3,1615.1,5.196]
[1745113538203,9.83855959,1615.4,1615.1,6.0212]
[1745113538408,6.95751009,1615.3,1615.1,5.196]
[1745113539008,6.19111009,1615.3,1615.1,5.196]
[1745113541515,6.19111009,1615.3,1615.2,0.01255717]
[1745113546728,16.67490787,1615.4,1615.2,0.01255717]
[1745113547020,18.96142256,1615.4,1615.2,0.01255717]
[1745113547997,16.67490787,1615.4,1615.2,0.01255717]
[1745113548199,6.07,1615.4,1615.2,0.01255717]
[1745113550224,6.07,1615.4,1615.3,6.19080047]
[1745113550601,3.86212414,1615.6,1615.3,6.19080047]
[1745113551731,10.05181244,1615.6,1615.3,6.19080047]
[1745113552629,10.05181244,1615.6,1615.2,7.45363172]
[1745113553724,6.19004679,1615.5,1615.2,7.45363172]
[1745113554033,16.24180981,1615.6,1615.2,7.45363172]
[1745113554234,10.05181244,1615.6,1615.2,7.45363172]
[1745113554535,10.05181244,1615.6,1615.2,4.26267287]
[1745113554709,16.24174114,1615.6,1615.2,10.45369849]
[1745113554908,10.05181244,1615.6,1615.2,10.45369849]
[1745113555524,16.24174551,1615.6,1615.2,10.45363536]
[1745113555807,10.05181244,1615.6,1615.2,16.64457457]
[1745113556326,3.86212414,1615.6,1615.3,12.38135987]
[1745113556524,3.86212414,1615.6,1615.3,12.38119017]
[1745113556729,3.86212414,1615.6,1615.3,6.1905813]
[1745113557224,0.21421753,1615.6,1615.5,6.19003404]
[1745113557425,0.21421753,1615.6,1615.5,14.36203404]
[1745113557641,0.21421753,1615.6,1615.5,15.14033404]
[1745113561944,0.21421753,1615.6,1615.5,8.172]
[1745113562143,6.40386843,1615.6,1615.5,5.172]
[1745113562437,8.21714593,1615.6,1615.5,5.172]
[1745113562847,6.19022335,1615.5,1615.2,5.18455717]
[1745113563054,0.8081,1615.4,1615.2,5.18455717]
[1745113564152,10.62964679,1615.5,1615.2,5.18455717]
[1745113564338,10.62964679,1615.5,1615.2,11.37560526]
[1745113565045,9.83814679,1615.5,1615.2,5.18455717]
[1745113565951,6.19049877,1615.4,1615.2,5.18455717]
[1745113567443,11.64146548,1615.5,1615.2,11.37570052]
[1745113567623,6.19024018,1615.5,1615.2,11.37570052]
[1745113567824,1.0000052,1615.6,1615.3,6.19079513]
[1745113569445,1.0000052,1615.6,1615.3,6.1905579]
[1745113571042,0.2085052,1615.6,1615.3,3.8184]
[1745113571247,6.39840812,1615.6,1615.3,3.8184]
[1745113571618,6.39840812,1615.6,1615.3,3.0]
[1745113571819,12.58833939,1615.6,1615.3,3.0]
[1745113572041,6.39840812,1615.6,1615.3,3.0]
[1745113573048,6.39840812,1615.6,1615.3,9.19077054]